fUSD/lending_fUSD_20241205
["ID","MTS","AMOUNT","RATE_DAILY","PERIOD"]
[344411638,1733421046242,-263.93376824,7.695e-05,2]
[344411639,1733421046251,-625.62078399,7.696e-05,2]
[344411640,1733421046262,-200.0,7.696e-05,2]
[344411641,1733421046273,-263.93376824,7.696e-05,2]
[344411642,1733421046283,-263.93376824,7.696e-05,2]
[344411643,1733421046296,-2216.39,7.696e-05,2]
[344411644,1733421046305,-3732.26,7.696e-05,2]
[344411645,1733421046315,-500.0,7.696e-05,2]
[344411646,1733421046325,-1139.44,7.696e-05,2]
[344411647,1733421046336,-351.911691,7.696e-05,2]
[344411648,1733421046346,-1112.2147271,7.696e-05,2]
[344411649,1733421046356,-200.0,7.696e-05,2]
[344411650,1733421046366,-200.0,7.696e-05,2]
[344411651,1733421046375,-625.62078399,7.697e-05,2]
[344411652,1733421046385,-200.0,7.697e-05,2]
[344411653,1733421046395,-500.0,7.697e-05,2]
[344411654,1733421046405,-500.0,7.697e-05,2]
[344411655,1733421046414,-500.0,7.697e-05,2]
[344411656,1733421046424,-500.11,7.697e-05,2]
[344411657,1733421046434,-186.60781055,7.697e-05,2]
[344411658,1733421046444,-500.0,7.697e-05,2]
[344411659,1733421046454,-500.0,7.697e-05,2]
[344411660,1733421046463,-218.81913426,7.697e-05,2]
[344411661,1733421046473,-500.0,7.697e-05,2]
[344411662,1733421046483,-500.0,7.697e-05,2]
[344411663,1733421046492,-500.0,7.697e-05,2]
[344411664,1733421046507,-500.0,7.697e-05,2]
[344411665,1733421046516,-500.0,7.697e-05,2]
[344411666,1733421046526,-500.0,7.697e-05,2]
[344411667,1733421046536,-500.0,7.697e-05,2]
[344411668,1733421046546,-500.0,7.697e-05,2]
[344411669,1733421046555,-500.0,7.697e-05,2]
[344411670,1733421046565,-500.0,7.697e-05,2]
[344411671,1733421046575,-500.0,7.697e-05,2]
[344411672,1733421046585,-500.0,7.697e-05,2]
[344411673,1733421046595,-500.0,7.697e-05,2]
[344411674,1733421046606,-500.0,7.697e-05,2]
[344411675,1733421046615,-500.0,7.697e-05,2]
[344411676,1733421046625,-500.0,7.697e-05,2]
[344411677,1733421046635,-500.0,7.697e-05,2]
[344411678,1733421046644,-500.0,7.697e-05,2]
[344411679,1733421046654,-431.57941003,7.697e-05,2]
[344411680,1733421046664,-500.0,7.697e-05,2]
[344411681,1733421046673,-500.0,7.697e-05,2]
[344411682,1733421046682,-500.0,7.697e-05,2]
[344411683,1733421046692,-500.0,7.697e-05,2]
[344411684,1733421046701,-500.0,7.697e-05,2]
[344411685,1733421046710,-500.0,7.697e-05,2]
[344411686,1733421046720,-242.6539685,7.697e-05,2]
[344411687,1733421046729,-500.0,7.697e-05,2]
[344411688,1733421046740,-500.0,7.697e-05,2]
[344411689,1733421046749,-500.0,7.697e-05,2]
[344411690,1733421046758,-500.0,7.697e-05,2]
[344411691,1733421046767,-500.0,7.697e-05,2]
[344411692,1733421046777,-500.0,7.697e-05,2]
[344411693,1733421046786,-500.0,7.697e-05,2]
[344411694,1733421046796,-500.0,7.697e-05,2]
[344411695,1733421046805,-500.0,7.697e-05,2]
[344411696,1733421046814,-500.0,7.697e-05,2]
[344411697,1733421046824,-500.0,7.697e-05,2]
[344411698,1733421046834,-500.0,7.697e-05,2]
[344411699,1733421046843,-500.0,7.697e-05,2]
[344411700,1733421046852,-500.0,7.697e-05,2]
[344411701,1733421046861,-500.0,7.697e-05,2]
[344411702,1733421046871,-167.0,7.697e-05,2]
[344411703,1733421046880,-500.0,7.697e-05,2]
[344411704,1733421046890,-500.0,7.697e-05,2]
[344411705,1733421046899,-500.0,7.697e-05,2]
[344411706,1733421046909,-437.91,7.697e-05,2]
[344411707,1733421046918,-500.0,7.697e-05,2]
[344411708,1733421046928,-500.0,7.697e-05,2]
[344411709,1733421046937,-385.46681251,7.697e-05,2]
[344411710,1733421046946,-500.0,7.697e-05,2]
[344411711,1733421046955,-500.0,7.697e-05,2]
[344411712,1733421046965,-500.0,7.697e-05,2]
[344411713,1733421046974,-500.0,7.697e-05,2]
[344411714,1733421046984,-500.0,7.697e-05,2]
[344411715,1733421046994,-257.56,7.697e-05,2]
[344411716,1733421047008,-500.0,7.697e-05,2]
[344411717,1733421047017,-500.0,7.697e-05,2]
[344411718,1733421047026,-500.0,7.697e-05,2]
[344411719,1733421047036,-217.21,7.697e-05,2]
[344411720,1733421047046,-500.0,7.697e-05,2]
[344411721,1733421047055,-500.0,7.697e-05,2]
[344411722,1733421047065,-500.0,7.697e-05,2]
[344411723,1733421047074,-500.0,7.697e-05,2]
[344411724,1733421047084,-500.0,7.697e-05,2]
[344411725,1733421047093,-500.0,7.697e-05,2]
[344411726,1733421047103,-500.0,7.697e-05,2]
[344411727,1733421047112,-500.0,7.697e-05,2]
[344411728,1733421047122,-235.89561171,7.697e-05,2]
[344411729,1733421047131,-500.0,7.697e-05,2]
[344411730,1733421047141,-500.0,7.697e-05,2]
[344411731,1733421047151,-500.0,7.697e-05,2]
[344411732,1733421047373,-500.0,7.697e-05,2]
[344411733,1733421047383,-500.0,7.697e-05,2]
[344411734,1733421047392,-500.0,7.697e-05,2]
[344411735,1733421047402,-500.0,7.697e-05,2]
[344411736,1733421047412,-500.0,7.697e-05,2]
[344411737,1733421047421,-500.0,7.697e-05,2]
[344411738,1733421047431,-500.0,7.697e-05,2]
[344411739,1733421047440,-500.0,7.697e-05,2]
[344411740,1733421047449,-500.0,7.697e-05,2]
[344411741,1733421047458,-526.72861148,7.697e-05,2]
[344411742,1733421047468,-732.68,7.697e-05,2]
[344411743,1733421047478,-732.68,7.697e-05,2]
[344411744,1733421047488,-500.0,7.697e-05,2]
[344411745,1733421047499,-500.0,7.697e-05,2]
[344411746,1733421047509,-500.0,7.697e-05,2]
[344411747,1733421047518,-500.0,7.697e-05,2]
[344411748,1733421047529,-500.0,7.697e-05,2]
[344411749,1733421047539,-500.0,7.697e-05,2]
[344411750,1733421047548,-500.0,7.697e-05,2]
[344411751,1733421047558,-500.0,7.697e-05,2]
[344411752,1733421047568,-500.0,7.697e-05,2]
[344411753,1733421047577,-500.0,7.697e-05,2]
[344411754,1733421047587,-500.0,7.697e-05,2]
[344411755,1733421047597,-500.0,7.697e-05,2]
[344411756,1733421047607,-500.0,7.697e-05,2]
[344411757,1733421047617,-371.04224174,7.697e-05,2]
[344411758,1733421047627,-500.0,7.697e-05,2]
[344411759,1733421047636,-501.64294072,7.697e-05,2]
[344411760,1733421047646,-643.19,7.697e-05,2]
[344411761,1733421047656,-500.0,7.697e-05,2]
[344411762,1733421047666,-500.0,7.697e-05,2]
[344411763,1733421047675,-501.00466137,7.697e-05,2]
[344411764,1733421047685,-502.11377703,7.697e-05,2]
[344411765,1733421047695,-501.5526825,7.697e-05,2]
[344411766,1733421047705,-501.44652027,7.697e-05,2]
[344411767,1733421047714,-500.0,7.697e-05,2]
[344411768,1733421047723,-333.17,7.697e-05,2]
[344411769,1733421047733,-500.0,7.697e-05,2]
[344411770,1733421047743,-500.0,7.697e-05,2]
[344411771,1733421047754,-500.0,7.697e-05,2]
[344411772,1733421047764,-500.0,7.697e-05,2]
[344411773,1733421047773,-446.38,7.697e-05,2]
[344411774,1733421047783,-500.0,7.697e-05,2]
[344411775,1733421047792,-500.0,7.697e-05,2]
[344411776,1733421047801,-500.0,7.697e-05,2]
[344411777,1733421047812,-500.0,7.697e-05,2]
[344411778,1733421047821,-495.91,7.697e-05,2]
[344411779,1733421047831,-500.0,7.697e-05,2]
[344411780,1733421047840,-220.72,7.697e-05,2]
[344411781,1733421047850,-501.42619413,7.697e-05,2]
[344411782,1733421047859,-501.2983896,7.697e-05,2]
[344411783,1733421047869,-500.0,7.697e-05,2]
[344411784,1733421047878,-346.5,7.697e-05,2]
[344411785,1733421047888,-392.75781417,7.697e-05,2]
[344411786,1733421047897,-500.0,7.697e-05,2]
[344411787,1733421047907,-200.0,7.697e-05,2]
[344411788,1733421047917,-200.0,7.697e-05,2]
[344411789,1733421047927,-1482.95296947,7.697e-05,2]
[344411790,1733421047936,-469.215588,7.698e-05,2]
[344411791,1733421047946,-351.911691,7.698e-05,2]
[344411792,1733421047955,-200.0,7.698e-05,2]
[344411793,1733421047965,-200.0,7.698e-05,2]
[344411794,1733421047974,-200.0,7.699e-05,2]
[344411795,1733421047983,-1977.27062595,7.699e-05,2]
[344411796,1733421047993,-1482.95296947,7.699e-05,2]
[344411797,1733421048003,-1977.27062595,7.699e-05,2]
[344411798,1733421048013,-834.16104532,7.7e-05,2]
[344411799,1733421048022,-799.99,8.012e-05,2]
[344411800,1733421048032,-300.0,8.219e-05,2]
[344411801,1733421048042,-250.0,8.219e-05,2]
[344411802,1733421048051,-5244.41,8.219e-05,2]
[344411803,1733421048060,-6181.91,8.219e-05,2]
[344411804,1733421048070,-981.97,8.457e-05,2]
[344411805,1733421048079,-153.0,8.8e-05,2]
[344411806,1733421048089,-153.0,8.812e-05,2]
[344411807,1733421048099,-153.0,8.812e-05,2]
[344411808,1733421048109,-153.0,8.813e-05,2]
[344411809,1733421048119,-153.0,8.813e-05,2]
[344411810,1733421048128,-153.0,8.824e-05,2]
[344411811,1733421048137,-153.0,8.825e-05,2]
[344411812,1733421048147,-153.0,8.837e-05,2]
[344411813,1733421048157,-153.0,8.837e-05,2]
[344411814,1733421048166,-153.0,8.838e-05,2]
[344411815,1733421048176,-153.0,8.838e-05,2]
[344411816,1733421048186,-153.0,8.849e-05,2]
[344411817,1733421048196,-153.0,8.861e-05,2]
[344411818,1733421048205,-200.0,8.887e-05,2]
[344411819,1733421048215,-799.99,8.902e-05,2]
[344411820,1733421048226,-500.0,8.999e-05,2]
[344411821,1733421048238,-500.0,8.999e-05,2]
[344411822,1733421048252,-500.0,8.999e-05,2]
[344411823,1733421048262,-500.0,8.999e-05,2]
[344411824,1733421048273,-500.0,8.999e-05,2]
[344411825,1733421048283,-500.0,8.999e-05,2]
[344411826,1733421048292,-500.0,8.999e-05,2]
[344411827,1733421048303,-500.0,8.999e-05,2]
[344411828,1733421048314,-501.37684492,8.999e-05,2]
[344411829,1733421048323,-500.0,8.999e-05,2]
[344411830,1733421048334,-500.0,8.999e-05,2]
[344411831,1733421048344,-500.0,8.999e-05,2]
[344411832,1733421048354,-500.0,8.999e-05,2]
[344411833,1733421048365,-500.0,8.999e-05,2]
[344411834,1733421048375,-500.0,8.999e-05,2]
[344411835,1733421048386,-500.0,8.999e-05,2]
[344411836,1733421048398,-500.0,8.999e-05,2]
[344411837,1733421048409,-500.0,8.999e-05,2]
[344411838,1733421048420,-500.0,8.999e-05,2]
[344411839,1733421048430,-500.0,8.999e-05,2]
[344411840,1733421048440,-500.0,8.999e-05,2]
[344411841,1733421048450,-500.0,8.999e-05,2]
[344411842,1733421048460,-500.0,8.999e-05,2]
[344411843,1733421048470,-500.0,8.999e-05,2]
[344411844,1733421048479,-500.0,8.999e-05,2]
[344411845,1733421048490,-500.0,8.999e-05,2]
[344411846,1733421048501,-500.0,8.999e-05,2]
[344411847,1733421048513,-500.0,8.999e-05,2]
[344411848,1733421048523,-500.0,8.999e-05,2]
[344411849,1733421048533,-216.74828546,8.999e-05,2]
[344411850,1733421048544,-500.0,8.999e-05,2]
[344411851,1733421048555,-500.0,8.999e-05,2]
[344411852,1733421048565,-732.68,8.999e-05,2]
[344411853,1733421048575,-500.0,8.999e-05,2]
[344411854,1733421048585,-500.0,8.999e-05,2]
[344411855,1733421048595,-500.0,8.999e-05,2]
[344411856,1733421048604,-500.0,8.999e-05,2]
[344411857,1733421048614,-296.83750666,8.999e-05,2]
[344411858,1733421048623,-500.0,8.999e-05,2]
[344411859,1733421048633,-500.0,8.999e-05,2]
[344411860,1733421048642,-500.0,8.999e-05,2]
[344411861,1733421048652,-150.68,8.999e-05,2]
[344411862,1733421048662,-500.0,9.314e-05,2]
[344411863,1733421048672,-500.0,9.314e-05,2]
[344411864,1733421048682,-500.0,9.314e-05,2]
[344411865,1733421048691,-500.0,9.314e-05,2]
[344411866,1733421048700,-500.0,9.314e-05,2]
[344411867,1733421048709,-500.0,9.314e-05,2]
[344411868,1733421048719,-500.0,9.314e-05,2]
[344411869,1733421048728,-500.0,9.314e-05,2]
[344411870,1733421048738,-500.0,9.314e-05,2]
[344411871,1733421048748,-500.0,9.314e-05,2]
[344411872,1733421048758,-500.0,9.314e-05,2]
[344411873,1733421048768,-500.0,9.314e-05,2]
[344411874,1733421048777,-500.0,9.314e-05,2]
[344411875,1733421048787,-500.0,9.314e-05,2]
[344411876,1733421048797,-500.0,9.314e-05,2]
[344411877,1733421048806,-685.97,9.314e-05,2]
[344411878,1733421048817,-500.0,9.314e-05,2]
[344411879,1733421048827,-500.0,9.314e-05,2]
[344411880,1733421048836,-500.0,9.314e-05,2]
[344411881,1733421048846,-591.60748161,9.314e-05,2]
[344411882,1733421048856,-500.0,9.314e-05,2]
[344411883,1733421048866,-202.02,9.314e-05,2]
[344411884,1733421048876,-1200.0,9.315e-05,2]
[344411885,1733421048886,-1200.0,9.315e-05,2]
[344411886,1733421048896,-1262.0,9.77e-05,2]
[344411887,1733421048906,-566.0,9.77e-05,2]
[344411888,1733421048916,-1893.0,9.77e-05,2]
[344411889,1733421048926,-563.0,9.77e-05,2]
[344411890,1733421048935,-1252.0,9.77e-05,2]
[344411891,1733421048945,-3761.0,9.77e-05,2]
[344411892,1733421048955,-816.0,9.77e-05,2]
[344411893,1733421048966,-3529.0,9.77e-05,2]
[344411894,1733421048976,-535.0,9.77e-05,2]
[344411895,1733421048987,-973.0,9.77e-05,2]
[344411896,1733421048997,-150.0,9.77e-05,2]
[344411897,1733421049008,-5963.0,9.77e-05,2]
[344411898,1733421049018,-12862.61,9.77e-05,2]
[344411899,1733421049028,-150.0,9.77e-05,2]
[344411900,1733421049038,-1166.0,9.77e-05,2]
[344411901,1733421049048,-799.99,9.792e-05,2]
[344411902,1733421049058,-1131.17,9.797e-05,2]
[344411903,1733421049068,-2924.88,9.797e-05,2]
[344411904,1733421049077,-2817.56,9.797e-05,2]
[344411905,1733421049087,-2623.42,9.797e-05,2]
[344411906,1733421049097,-500.0,9.798e-05,2]
[344411907,1733421049106,-500.0,9.798e-05,2]
[344411908,1733421049116,-500.0,9.798e-05,2]
[344411909,1733421049126,-500.0,9.798e-05,2]
[344411910,1733421049135,-500.0,9.798e-05,2]
[344411911,1733421049145,-500.0,9.798e-05,2]
[344411912,1733421049156,-500.0,9.798e-05,2]
[344411913,1733421049166,-500.0,9.798e-05,2]
[344411914,1733421049175,-500.0,9.798e-05,2]
[344411915,1733421049185,-379.23,9.798e-05,2]
[344411916,1733421049195,-392.88,9.798e-05,2]
[344411917,1733421049205,-500.0,9.798e-05,2]
[344411918,1733421049215,-500.0,9.798e-05,2]
[344411919,1733421049228,-500.0,9.798e-05,2]
[344411920,1733421049238,-500.0,9.798e-05,2]
[344411921,1733421049250,-559.19582903,9.798e-05,2]
[344411922,1733421049259,-500.0,9.798e-05,2]
[344411923,1733421049269,-500.0,9.798e-05,2]
[344411924,1733421049280,-500.0,9.798e-05,2]
[344411925,1733421049291,-500.0,9.798e-05,2]
[344411926,1733421049302,-500.0,9.798e-05,2]
[344411927,1733421049314,-500.0,9.798e-05,2]
[344411928,1733421049325,-243.52411057,9.798e-05,2]
[344411929,1733421049335,-500.0,9.798e-05,2]
[344411930,1733421049345,-500.0,9.798e-05,2]
[344411931,1733421049356,-500.0,9.798e-05,2]
[344411932,1733421049366,-500.0,9.798e-05,2]
[344411933,1733421049376,-500.0,9.798e-05,2]
[344411934,1733421049387,-500.0,9.798e-05,2]
[344411935,1733421049398,-732.68,9.798e-05,2]
[344411936,1733421049409,-500.0,9.798e-05,2]
[344411937,1733421049419,-500.0,9.798e-05,2]
[344411938,1733421049430,-500.0,9.798e-05,2]
[344411939,1733421049440,-500.0,9.798e-05,2]
[344411940,1733421049450,-500.0,9.798e-05,2]
[344411941,1733421049460,-150.5,9.798e-05,2]
[344411942,1733421049470,-348.06785298,9.798e-05,2]
[344411943,1733421049480,-639.12093859,9.897e-05,2]
[344411944,1733421049490,-500.0,9.897e-05,2]
[344411945,1733421049502,-500.0,9.897e-05,2]
[344411946,1733421049512,-500.0,9.897e-05,2]
[344411947,1733421049521,-500.0,9.897e-05,2]
[344411948,1733421049531,-500.0,9.897e-05,2]
[344411949,1733421049540,-500.0,9.897e-05,2]
[344411950,1733421049550,-500.0,9.897e-05,2]
[344411951,1733421049560,-500.0,9.897e-05,2]
[344411952,1733421049570,-500.0,9.897e-05,2]
[344411953,1733421049579,-500.0,9.897e-05,2]
[344411954,1733421049588,-500.0,9.897e-05,2]
[344411955,1733421049597,-500.0,9.897e-05,2]
[344411956,1733421049606,-2216.39,9.897e-05,2]
[344411957,1733421049616,-500.0,9.897e-05,2]
[344411958,1733421049626,-500.0,9.897e-05,2]
[344411959,1733421049636,-685.97,9.897e-05,2]
[344411960,1733421049645,-264.56,9.897e-05,2]
[344411961,1733421049655,-3732.26,9.897e-05,2]
[344411962,1733421049665,-500.0,9.897e-05,2]
[344411963,1733421049675,-342.28352193,9.897e-05,2]
[344411964,1733421049684,-500.0,9.897e-05,2]
[344411965,1733421049694,-500.0,9.897e-05,2]
[344411966,1733421049703,-1074.98274186,9.897e-05,2]
[344411967,1733421049712,-1139.44,9.897e-05,2]
[344411968,1733421049722,-500.0,9.898e-05,2]
[344411969,1733421049731,-500.0,9.898e-05,2]
[344411970,1733421049741,-501.27417618,9.898e-05,2]
[344411971,1733421049753,-500.0,9.898e-05,2]
[344411972,1733421049762,-526.44174013,9.898e-05,2]
[344411973,1733421049772,-500.0,9.898e-05,2]
[344411974,1733421049782,-501.51550608,9.898e-05,2]
[344411975,1733421049791,-501.07476238,9.898e-05,2]
[344411976,1733421049801,-501.40341228,9.898e-05,2]
[344411977,1733421049810,-500.0,9.898e-05,2]
[344411978,1733421049820,-500.0,9.898e-05,2]
[344411979,1733421049829,-500.0,9.898e-05,2]
[344411980,1733421049840,-500.0,9.898e-05,2]
[344411981,1733421049850,-500.0,9.898e-05,2]
[344411982,1733421049859,-500.0,9.898e-05,2]
[344411983,1733421049869,-500.0,9.898e-05,2]
[344411984,1733421049878,-500.0,9.898e-05,2]
[344411985,1733421049888,-500.0,9.898e-05,2]
[344411986,1733421049897,-469.84,9.898e-05,2]
[344411987,1733421049907,-500.0,9.898e-05,2]
[344411988,1733421049917,-500.0,9.898e-05,2]
[344411989,1733421049927,-500.0,9.898e-05,2]
[344411990,1733421049936,-500.0,9.898e-05,2]
[344411991,1733421049945,-500.0,9.898e-05,2]
[344411992,1733421049955,-500.0,9.898e-05,2]
[344411993,1733421049964,-500.0,9.898e-05,2]
[344411994,1733421049974,-500.0,9.898e-05,2]
[344411995,1733421049983,-500.0,9.898e-05,2]
[344411996,1733421049992,-500.0,9.898e-05,2]
[344411997,1733421050003,-500.0,9.898e-05,2]
[344411998,1733421050013,-500.0,9.898e-05,2]
[344411999,1733421050022,-616.96,9.898e-05,2]
[344412000,1733421050032,-500.0,9.898e-05,2]
[344412001,1733421050042,-500.0,9.898e-05,2]
[344412002,1733421050052,-500.0,9.898e-05,2]
[344412003,1733421050062,-500.0,9.898e-05,2]
[344412004,1733421050071,-500.0,9.898e-05,2]
[344412005,1733421050080,-500.0,9.898e-05,2]
[344412006,1733421050090,-500.0,9.898e-05,2]
[344412007,1733421050100,-500.0,9.898e-05,2]
[344412008,1733421050110,-500.0,9.898e-05,2]
[344412009,1733421050119,-500.0,9.898e-05,2]
[344412010,1733421050128,-500.0,9.898e-05,2]
[344412011,1733421050138,-500.0,9.898e-05,2]
[344412012,1733421050147,-500.0,9.898e-05,2]
[344412013,1733421050157,-500.0,9.898e-05,2]
[344412014,1733421050166,-500.0,9.898e-05,2]
[344412015,1733421050177,-500.0,9.898e-05,2]
[344412016,1733421050186,-51914.0,9.898e-05,2]
[344412017,1733421050197,-11964.0,9.898e-05,2]
[344412018,1733421050208,-500.0,9.898e-05,2]
[344412019,1733421050219,-500.0,9.898e-05,2]
[344412020,1733421050233,-500.0,9.898e-05,2]
[344412021,1733421050242,-227.76,9.898e-05,2]
[344412022,1733421050252,-500.0,9.898e-05,2]
[344412023,1733421050263,-494.59159335,9.898e-05,2]
[344412024,1733421050273,-500.0,9.898e-05,2]
[344412025,1733421050282,-500.0,9.898e-05,2]
[344412026,1733421050292,-500.0,9.898e-05,2]
[344412027,1733421050303,-500.0,9.898e-05,2]
[344412028,1733421050313,-386.85,9.898e-05,2]
[344412029,1733421050323,-500.0,9.898e-05,2]
[344412030,1733421050332,-500.0,9.898e-05,2]
[344412031,1733421050342,-500.0,9.898e-05,2]
[344412032,1733421050352,-500.0,9.898e-05,2]
[344412033,1733421050362,-500.0,9.898e-05,2]
[344412034,1733421050372,-500.0,9.898e-05,2]
[344412035,1733421050382,-500.0,9.898e-05,2]
[344412036,1733421050391,-500.0,9.898e-05,2]
[344412037,1733421050400,-500.0,9.898e-05,2]
[344412038,1733421050410,-500.0,9.898e-05,2]
[344412039,1733421050419,-500.0,9.898e-05,2]
[344412040,1733421050429,-732.68,9.898e-05,2]
[344412041,1733421050439,-732.68,9.898e-05,2]
[344412042,1733421050448,-732.68,9.898e-05,2]
[344412043,1733421050458,-732.68,9.898e-05,2]
[344412044,1733421050468,-732.68,9.898e-05,2]
[344412045,1733421050478,-732.68,9.898e-05,2]
[344412046,1733421050487,-732.68,9.898e-05,2]
[344412047,1733421050496,-732.68,9.898e-05,2]
[344412048,1733421050508,-500.0,9.898e-05,2]
[344412049,1733421050521,-500.0,9.898e-05,2]
[344412050,1733421050530,-500.0,9.898e-05,2]
[344412051,1733421050540,-500.0,9.898e-05,2]
[344412052,1733421050550,-500.0,9.898e-05,2]
[344412053,1733421050560,-500.0,9.898e-05,2]
[344412054,1733421050570,-500.0,9.898e-05,2]
[344412055,1733421050579,-500.0,9.898e-05,2]
[344412056,1733421050589,-500.0,9.898e-05,2]
[344412057,1733421050599,-500.0,9.898e-05,2]
[344412058,1733421050609,-500.0,9.898e-05,2]
[344412059,1733421050619,-500.0,9.898e-05,2]
[344412060,1733421050629,-500.0,9.898e-05,2]
[344412061,1733421050638,-500.0,9.898e-05,2]
[344412062,1733421050648,-500.0,9.898e-05,2]
[344412063,1733421050658,-500.0,9.898e-05,2]
[344412064,1733421050667,-423.0798791,9.898e-05,2]
[344412065,1733421050681,-500.0,9.898e-05,2]
[344412066,1733421050691,-500.0,9.904e-05,2]
[344412067,1733421050701,-451.12,9.904e-05,2]
[344412068,1733421050711,-500.0,9.904e-05,2]
[344412069,1733421050722,-732.68,9.904e-05,2]
[344412070,1733421050732,-500.0,9.904e-05,2]
[344412071,1733421050741,-500.0,9.904e-05,2]
[344412072,1733421050752,-500.0,9.998e-05,2]
[344412073,1733421050761,-977.23,9.998e-05,2]
[344412074,1733421050771,-500.0,9.998e-05,2]
[344412075,1733421050780,-967.07,9.998e-05,2]
[344412076,1733421050790,-500.0,9.998e-05,2]
[344412077,1733421050803,-500.0,9.998e-05,2]
[344412078,1733421050812,-500.0,9.998e-05,2]
[344412079,1733421050822,-500.0,9.998e-05,2]
[344412080,1733421050833,-500.0,9.998e-05,2]
[344412081,1733421050842,-500.0,9.998e-05,2]
[344412082,1733421050852,-500.0,9.998e-05,2]
[344412083,1733421050861,-500.0,9.998e-05,2]
[344412084,1733421050871,-500.0,9.998e-05,2]
[344412085,1733421050880,-500.0,9.998e-05,2]
[344412086,1733421050889,-1540.51,9.998e-05,2]
[344412087,1733421050899,-1033.72,9.998e-05,2]
[344412088,1733421050909,-500.0,9.998e-05,2]
[344412089,1733421050919,-440.41442458,9.998e-05,2]
[344412090,1733421050928,-1283.64,9.998e-05,2]
[344412091,1733421050937,-500.0,9.998e-05,2]
[344412092,1733421050947,-500.0,9.998e-05,2]
[344412093,1733421050956,-500.0,9.998e-05,2]
[344412094,1733421050966,-500.0,9.998e-05,2]
[344412095,1733421050976,-1131.17,9.998e-05,2]
[344412096,1733421050986,-500.0,9.998e-05,2]
[344412097,1733421050995,-500.0,9.998e-05,2]
[344412098,1733421051006,-500.0,9.998e-05,2]
[344412099,1733421051015,-500.0,9.998e-05,2]
[344412100,1733421051025,-500.0,9.998e-05,2]
[344412101,1733421051035,-655.5,9.998e-05,2]
[344412102,1733421051044,-300.19314907,9.998e-05,2]
[344412103,1733421051054,-500.0,9.998e-05,2]
[344412104,1733421051063,-500.0,9.998e-05,2]
[344412105,1733421051072,-500.0,9.998e-05,2]
[344412106,1733421051082,-972.84,9.998e-05,2]
[344412107,1733421051092,-2924.88,9.998e-05,2]
[344412108,1733421051101,-500.0,9.998e-05,2]
[344412109,1733421051111,-500.0,9.998e-05,2]
[344412110,1733421051120,-564.18117988,9.998e-05,2]
[344412111,1733421051129,-500.0,9.998e-05,2]
[344412112,1733421051140,-2817.56,9.998e-05,2]
[344412113,1733421051149,-500.0,9.998e-05,2]
[344412114,1733421051159,-500.0,9.998e-05,2]
[344412115,1733421051169,-500.0,9.998e-05,2]
[344412116,1733421051179,-500.0,9.998e-05,2]
[344412117,1733421051189,-500.0,9.998e-05,2]
[344412118,1733421051199,-500.0,9.998e-05,2]
[344412119,1733421051208,-500.0,9.998e-05,2]
[344412120,1733421051219,-500.0,9.998e-05,2]
[344412121,1733421051231,-2623.42,9.998e-05,2]
[344412122,1733421051241,-500.0,9.998e-05,2]
[344412123,1733421051251,-500.0,9.998e-05,2]
[344412124,1733421051263,-500.0,9.998e-05,2]
[344412125,1733421051273,-500.0,9.998e-05,2]
[344412126,1733421051283,-685.97,9.998e-05,2]
[344412127,1733421051292,-500.0,9.998e-05,2]
[344412128,1733421051304,-500.0,9.998e-05,2]
[344412129,1733421051314,-500.0,9.998e-05,2]
[344412130,1733421051323,-500.0,9.998e-05,2]
[344412131,1733421051333,-500.0,9.999e-05,2]
[344412132,1733421051343,-556.8,9.999e-05,2]
[344412133,1733421051353,-500.0,9.999e-05,2]
[344412134,1733421051362,-500.0,9.999e-05,2]
[344412135,1733421051372,-500.0,9.999e-05,2]
[344412136,1733421051382,-500.0,9.999e-05,2]
[344412137,1733421051393,-565.29055087,9.999e-05,2]